bitfinex-derivatives/quotes_BTCF0:USTF0_20210406
["timestamp","ask_amount","ask_price","bid_price","bid_amount"]
[1617732070483,0.1474,58200.0,58188.0,0.5665961]
[1617732070684,0.1474,58200.0,58187.0,0.5666834]
[1617732071093,0.10725655,58188.0,58187.0,0.5666834]
[1617732072507,0.10725655,58188.0,58186.0,0.56683737]
[1617732073496,0.10725655,58188.0,58185.0,0.56693176]
[1617732073890,0.10725655,58188.0,58186.0,0.5668875]
[1617732074392,0.10725655,58188.0,58185.0,0.56691256]
[1617732074591,0.24092655,58188.0,58185.0,0.56691256]
[1617732076101,0.24092655,58188.0,58176.0,0.81589725]
[1617732076102,0.24092655,58188.0,58184.0,0.56673414]
[1617732076995,0.24092655,58188.0,58185.0,0.27]
[1617732077695,0.24092655,58188.0,58181.0,0.56579662]
[1617732077896,0.24092655,58188.0,58180.0,0.56604687]
[1617732078100,1.0,58187.0,58180.0,0.56604687]
[1617732078497,1.0,58187.0,58176.0,0.55782629]
[1617732078798,1.0,58182.0,58176.0,0.55032629]
[1617732079097,0.0519,58181.0,58166.0,0.70818603]
[1617732079412,0.20870655,58167.0,58164.0,0.70837874]
[1617732079597,0.20870655,58167.0,58166.0,0.27]
[1617732079897,0.20870655,58167.0,58164.0,0.70837874]
[1617732080097,0.20870655,58167.0,58163.0,0.09152825]
[1617732080098,0.20768959,58167.0,58163.0,0.70836491]
[1617732080299,0.20768959,58167.0,58157.0,0.70854872]
[1617732080916,0.20768959,58167.0,58155.0,0.70858652]
[1617732081199,0.10725655,58156.0,58155.0,0.70858652]
[1617732081500,0.10725655,58156.0,58152.0,0.70859544]
[1617732082131,0.10725655,58156.0,58147.0,0.09153929]
[1617732082329,0.10725655,58156.0,58145.0,0.89083248]
[1617732082501,0.0515,58155.0,58145.0,0.89083248]
[1617732082700,0.19224,58155.0,58146.0,0.27]
[1617732083111,0.19224,58155.0,58145.0,0.27]
[1617732083301,0.10725655,58146.0,58145.0,0.27]
[1617732083511,0.10725655,58146.0,58144.0,0.99809533]
[1617732083784,0.10725655,58146.0,58137.0,0.09154194]
[1617732083785,0.10725655,58146.0,58145.0,0.2068]
[1617732083966,0.10725655,58146.0,58145.0,0.0544]
[1617732084136,0.10725655,58146.0,58139.0,0.36155324]
[1617732084333,0.10725655,58146.0,58145.0,0.08]
[1617732084532,0.15815655,58146.0,58139.0,0.01595324]
[1617732084761,0.15815655,58146.0,58133.0,0.0523]
[1617732085110,0.15815655,58146.0,58145.0,0.50624231]
[1617732085604,0.15815655,58146.0,58145.0,0.84804253]
[1617732085804,0.15815655,58146.0,58145.0,0.77124253]
[1617732086206,0.15815655,58146.0,58145.0,0.76694253]
[1617732086826,0.10725655,58146.0,58145.0,0.76694253]
[1617732087709,0.15905655,58146.0,58145.0,0.76694253]
[1617732088008,0.10725655,58146.0,58145.0,0.76694253]
[1617732089410,0.10725655,58146.0,58145.0,0.44550022]
[1617732090463,0.10725655,58146.0,58145.0,1.44550022]
[1617732090610,0.1062392,58146.0,58145.0,1.44550022]
[1617732090811,0.1062392,58146.0,58145.0,0.44550022]
[1617732092113,0.1062392,58146.0,58145.0,1.64550022]
[1617732092821,0.1062392,58146.0,58145.0,0.64550022]
[1617732093030,0.1062392,58146.0,58145.0,0.44550022]
[1617732096429,0.1062392,58146.0,58145.0,0.44180022]
[1617732100519,0.10522185,58146.0,58145.0,0.44180022]
[1617732105228,0.10522185,58146.0,58141.0,0.50275614]
[1617732105629,0.10522185,58146.0,58140.0,0.50275383]
[1617732105828,0.10522185,58146.0,58142.0,0.27]
[1617732106032,0.10522185,58146.0,58140.0,0.50275383]
[1617732106834,0.10522185,58146.0,58141.0,0.27]
[1617732108431,0.15692185,58146.0,58141.0,0.1932]
[1617732108630,0.15692185,58146.0,58141.0,0.1677]
[1617732108831,0.10522185,58146.0,58141.0,0.1173]
[1617732109131,0.10522185,58146.0,58138.0,0.50276562]
[1617732109337,0.14844,58154.0,58142.0,0.01]
[1617732109531,0.14844,58154.0,58139.0,0.27]
[1617732109931,0.14844,58154.0,58138.0,0.50276562]
[1617732110132,1.0,58151.0,58138.0,0.50276562]
[1617732110540,1.0,58150.0,58138.0,0.50276562]
[1617732110756,1.0,58148.0,58138.0,0.50276562]
[1617732110956,0.0509,58147.0,58137.0,0.50278023]
[1617732111236,1.0,58148.0,58137.0,0.50278023]
[1617732111542,0.24001655,58138.0,58136.0,0.50279239]
[1617732112136,0.24001655,58138.0,58119.0,1.09156842]
[1617732112137,0.23899911,58138.0,58135.0,0.50278829]
[1617732112539,0.23899911,58138.0,58134.0,0.50278976]
[1617732112941,0.23899911,58138.0,58135.0,0.50278997]
[1617732113640,0.23899911,58138.0,58134.0,0.50279148]
[1617732114140,0.23899911,58138.0,58135.0,0.50278816]
[1617732115139,0.23899911,58138.0,58137.0,0.50303727]
[1617732115339,0.10623911,58138.0,58137.0,0.50303727]
[1617732118244,0.10623911,58138.0,58137.0,0.49543727]
[1617732122245,0.10522163,58138.0,58127.0,0.56357219]
[1617732122844,0.10522163,58138.0,58128.0,0.27]
[1617732123246,0.10522163,58138.0,58127.0,0.56357219]
[1617732123448,0.10725655,58128.0,58127.0,0.56357219]
[1617732123647,0.26554655,58128.0,58127.0,0.56357219]
[1617732123847,0.26554655,58128.0,58125.0,0.56358068]
[1617732124849,0.26554655,58128.0,58122.0,0.563587]
[1617732125951,0.26554655,58128.0,58113.0,0.70449165]
[1617732125952,0.0519,58127.0,58123.0,0.56456698]
[1617732126248,0.26554655,58128.0,58123.0,0.56456698]
[1617732126655,0.26554655,58128.0,58121.0,0.5645958]
[1617732127150,0.0511,58127.0,58121.0,0.5645958]
[1617732127388,0.0511,58127.0,58122.0,0.27]
[1617732127554,0.0511,58127.0,58122.0,0.1954]
[1617732127757,0.0511,58127.0,58122.0,0.1716]
[1617732128152,0.0511,58127.0,58122.0,0.1445]
[1617732128654,0.0511,58127.0,58122.0,0.1191]
[1617732128852,0.0511,58127.0,58122.0,0.0905]
[1617732129055,0.0511,58127.0,58122.0,0.0785]
[1617732129584,0.10725655,58123.0,58115.0,0.52252118]
[1617732129762,0.10725655,58123.0,58115.0,0.47902118]
[1617732130008,0.10725655,58123.0,58108.0,0.4713]
[1617732130363,0.10725655,58123.0,58116.0,0.27]
[1617732130796,0.10725655,58123.0,58109.0,0.27]
[1617732131075,0.10725655,58123.0,58108.0,0.4713]
[1617732131463,1.0,58126.0,58109.0,0.2636]
[1617732132154,1.0,58126.0,58109.0,0.2474]
[1617732132355,1.0,58126.0,58109.0,0.2134]
[1617732132857,1.0,58126.0,58109.0,0.1539]
[1617732133257,1.0,58126.0,58109.0,0.1021]
[1617732133458,0.10725655,58110.0,58096.0,1.0]
[1617732133658,0.26472655,58110.0,58096.0,1.0]
[1617732133859,0.26472655,58110.0,58100.0,0.26]
[1617732134058,0.26472655,58110.0,58109.0,0.50419574]
[1617732134459,0.31612655,58110.0,58109.0,0.50419574]
[1617732134660,0.15865655,58110.0,58109.0,0.51419574]
[1617732135260,0.15865655,58110.0,58109.0,0.46259574]
[1617732135462,0.15763875,58110.0,58109.0,0.40079574]
[1617732135761,0.10623875,58110.0,58109.0,0.37549574]
[1617732136884,0.15813875,58110.0,58109.0,0.37139574]
[1617732137065,0.15813875,58110.0,58109.0,0.30559574]
[1617732137464,0.10623875,58110.0,58109.0,0.30559574]
[1617732139664,0.15723875,58110.0,58109.0,0.30559574]
[1617732140265,0.10623875,58110.0,58109.0,0.29189574]
[1617732140866,0.10623875,58110.0,58109.0,0.40690574]
[1617732141668,0.10623875,58110.0,58109.0,1.40690574]
[1617732148377,0.1052209,58110.0,58109.0,0.39690574]
[1617732148577,0.1052209,58110.0,58109.0,0.28189574]
[1617732148799,0.1052209,58110.0,58108.0,0.09160825]
[1617732149180,0.1052209,58110.0,58101.0,1.0]
[1617732149181,0.1052209,58110.0,58102.0,0.65651831]
[1617732149587,0.10725655,58103.0,58101.0,1.0]
[1617732149784,0.10725655,58103.0,58100.0,0.56431689]
[1617732149987,0.10725655,58103.0,58102.0,0.27]
[1617732150378,0.10725655,58103.0,58101.0,0.27]
[1617732150579,0.10725655,58103.0,58102.0,0.27]
[1617732151086,0.10725655,58103.0,58102.0,0.44339649]
[1617732151290,0.10725655,58103.0,58102.0,0.71339649]
[1617732151681,0.10725655,58103.0,58102.0,1.44339649]
[1617732151880,0.10725655,58103.0,58102.0,1.71339649]
[1617732152281,0.10725655,58103.0,58102.0,3.21339649]
[1617732152498,0.10725655,58103.0,58102.0,3.77771682]
[1617732153082,0.10725655,58103.0,58102.0,3.86932217]
[1617732153482,0.10725655,58103.0,58102.0,3.97657872]
[1617732154686,0.15935655,58103.0,58102.0,3.97657872]
[1617732155088,0.10725655,58103.0,58102.0,3.97657872]
[1617732155488,0.10725655,58103.0,58102.0,3.4804478]
[1617732155687,0.10725655,58103.0,58102.0,1.9804478]
[1617732156699,0.10725655,58103.0,58102.0,1.88884245]
[1617732156892,0.10725655,58103.0,58102.0,2.88884245]
[1617732157489,0.10725655,58103.0,58102.0,2.7815859]
[1617732159392,0.10623866,58103.0,58102.0,2.7815859]
[1617732162192,0.10623866,58103.0,58102.0,1.7815859]
[1617732162392,0.10623866,58103.0,58102.0,2.7815859]
[1617732164394,0.10623866,58103.0,58102.0,1.7815859]
[1617732164604,0.10623866,58103.0,58102.0,2.7815859]
[1617732167598,0.15703866,58103.0,58102.0,2.7815859]
[1617732167801,0.10623866,58103.0,58102.0,2.7815859]
[1617732169700,0.10623866,58103.0,58102.0,1.7815859]
[1617732169900,0.10623866,58103.0,58102.0,2.7815859]
[1617732170700,0.10623866,58103.0,58102.0,1.7815859]
[1617732170901,0.10522073,58103.0,58102.0,1.7815859]
[1617732171801,0.10522073,58103.0,58102.0,2.7815859]
[1617732172902,0.10522073,58103.0,58102.0,1.7815859]
[1617732173501,3.38932073,58103.0,58102.0,1.7815859]
[1617732174701,0.10522073,58103.0,58102.0,1.9340459]
[1617732175100,0.10522073,58103.0,58102.0,2.9340459]
[1617732175302,0.10522073,58103.0,58102.0,4.4340459]
[1617732175560,1.0,58150.0,58102.0,4.4340459]
[1617732175703,1.0,58150.0,58116.0,0.10725655]
[1617732175905,0.5003261,58156.0,58132.0,1.0]
[1617732176105,0.5003261,58156.0,58132.0,1.1239]
[1617732176406,0.50056883,58159.0,58134.0,2.6782]
[1617732176806,0.28138261,58160.0,58134.0,2.6782]
[1617732177205,0.1281,58160.0,58134.0,2.6782]
[1617732177752,0.10725655,58135.0,58134.0,3.12282356]
[1617732177924,0.10725655,58135.0,58134.0,0.44462356]
[1617732178125,0.10725655,58135.0,58132.0,1.69344849]
[1617732178624,0.10725655,58135.0,58134.0,0.95603681]
[1617732179608,0.10725655,58135.0,58134.0,1.95603681]
[1617732180011,0.10725655,58135.0,58134.0,0.95603681]
[1617732182311,0.10725655,58135.0,58134.0,1.95603681]
[1617732183519,0.10725655,58135.0,58134.0,2.52556738]
[1617732184315,0.10725655,58135.0,58134.0,5.89376738]
[1617732184514,0.10725655,58135.0,58134.0,7.39376738]
[1617732184864,0.50446404,58159.0,58134.0,7.62782403]
[1617732185280,0.1281,58160.0,58134.0,7.62782403]
[1617732185468,0.1281,58160.0,58152.0,0.44532704]
[1617732185749,0.10725655,58153.0,58152.0,0.71532704]
[1617732185928,0.10725655,58153.0,58152.0,0.27]
[1617732186339,0.10725655,58153.0,58152.0,2.31282261]
[1617732186719,0.10725655,58153.0,58152.0,3.72125532]
[1617732187318,0.10725655,58153.0,58152.0,3.812819]
[1617732187718,0.10725655,58153.0,58152.0,3.30683213]
[1617732188224,0.10725655,58153.0,58152.0,7.44506149]
[1617732189725,0.10725655,58153.0,58152.0,3.81146149]
[1617732193029,0.10725655,58153.0,58152.0,2.77]
[1617732193428,0.10725655,58153.0,58152.0,3.71868938]
[1617732194629,0.10725655,58153.0,58152.0,2.71868938]
[1617732194829,0.10725655,58153.0,58152.0,3.71868938]
[1617732195029,0.10725655,58153.0,58152.0,2.21868938]
[1617732196931,0.10725655,58153.0,58152.0,1.21868938]
[1617732197131,0.10725655,58153.0,58152.0,2.21868938]
[1617732197937,0.10725655,58153.0,58152.0,1.71406737]
[1617732198736,0.10725655,58153.0,58152.0,2.21854354]
[1617732199944,0.10623914,58153.0,58152.0,2.21854354]
[1617732204640,0.10623914,58153.0,58152.0,2.41854354]
[1617732205442,0.1281,58167.0,58152.0,3.91854354]
[1617732205941,0.1281,58167.0,58166.0,1.23903655]
[1617732206341,0.1281,58167.0,58166.0,1.50903655]
[1617732206542,0.1281,58195.0,58166.0,1.95242782]
[1617732206942,0.1281,58195.0,58175.0,1.0]
[1617732207442,0.1281,58195.0,58176.0,0.27]
[1617732207842,0.10725655,58177.0,58176.0,0.27]
[1617732208243,0.23535655,58177.0,58176.0,0.27]
[1617732211752,0.23535655,58177.0,58169.0,1.0]
[1617732211950,0.23535655,58177.0,58163.0,0.44312148]
[1617732211951,2.6299,58173.0,58163.0,0.44312148]
[1617732212150,2.6299,58173.0,58164.0,0.44312343]
[1617732212651,2.6299,58173.0,58165.0,0.27]
[1617732212951,2.6299,58173.0,58162.0,0.01]
[1617732213151,2.6299,58173.0,58166.0,0.26]
[1617732213651,2.6299,58173.0,58163.0,0.27]
[1617732213951,0.10725655,58157.0,58156.0,0.44315528]
[1617732214352,0.10725655,58157.0,58156.0,0.71315528]
[1617732219961,0.10725655,58157.0,58156.0,0.27]
[1617732220361,0.10725655,58157.0,58153.0,0.4431658]
[1617732220861,0.10725655,58157.0,58154.0,0.26]
[1617732221263,0.10725655,58157.0,58156.0,0.27]
[1617732221663,0.10725655,58157.0,58155.0,0.26]
[1617732221864,0.10725655,58157.0,58142.0,1.0]
[1617732221865,0.10725655,58157.0,58154.0,0.70389236]
[1617732222264,0.10725655,58157.0,58155.0,0.26]
[1617732222565,0.10725655,58157.0,58154.0,0.44389236]
[1617732222767,2.5503,58155.0,58154.0,0.44389236]
[1617732223007,2.5503,58155.0,58153.0,0.44390337]
[1617732223470,2.5503,58155.0,58146.0,0.50444182]
[1617732223710,0.10725655,58157.0,58146.0,0.50444182]
[1617732223968,1.0,58158.0,58129.0,1.70621854]
[1617732223969,0.10725655,58147.0,58144.0,0.50445954]
[1617732224267,0.22351655,58147.0,58142.0,0.5045003]
[1617732224867,0.22351655,58147.0,58129.0,1.0]
[1617732224868,0.22351655,58147.0,58140.0,0.49111302]
[1617732225167,0.22351655,58147.0,58143.0,0.2248]
[1617732225379,3.383,58144.0,58131.0,0.56505459]
[1617732225567,3.383,58144.0,58141.0,0.04]
[1617732225968,3.383,58144.0,58132.0,0.23]
[1617732226170,3.383,58144.0,58142.0,0.04]
[1617732226570,3.383,58144.0,58129.0,1.65665]
[1617732226768,3.383,58144.0,58132.0,0.27]
[1617732226968,3.383,58144.0,58143.0,0.03]
[1617732227268,3.383,58144.0,58133.0,0.27]
[1617732227670,3.383,58144.0,58129.0,1.0915922]
[1617732227880,3.383,58144.0,58130.0,0.27]
[1617732228990,1.0,58158.0,58130.0,0.27]
[1617732229284,0.4642,58173.0,58130.0,0.27]
[1617732229285,3.79647,58146.0,58130.0,0.27]
[1617732229970,0.10725655,58131.0,58130.0,0.27]
[1617732230170,3.78929655,58131.0,58130.0,0.27]
[1617732230493,3.78929655,58131.0,58122.0,0.09160206]
[1617732230970,3.78929655,58131.0,58112.0,0.10725655]
[1617732230971,0.23139655,58131.0,58115.0,0.56514509]
[1617732231686,0.23139655,58131.0,58116.0,0.27]
[1617732231872,2.9428,58118.0,58116.0,0.27]
[1617732232084,0.10725655,58117.0,58116.0,0.27]
[1617732232371,0.10623864,58117.0,58116.0,0.27]
[1617732233905,1.10623864,58117.0,58114.0,0.56592059]
[1617732234074,1.10623864,58117.0,58106.0,0.70739764]
[1617732234075,0.10623864,58117.0,58115.0,0.56593969]
[1617732234475,0.10623864,58117.0,58109.0,0.56595056]
[1617732234985,0.10623864,58117.0,58108.0,0.56598002]
[1617732235207,0.10623864,58117.0,58110.0,0.27]
[1617732235385,3.5264,58111.0,58109.0,0.01]
[1617732235897,3.5264,58111.0,58110.0,0.56596995]
[1617732236280,3.5264,58111.0,58110.0,0.57596995]
[1617732238186,3.63365655,58111.0,58110.0,0.57596995]
[1617732240486,3.63365655,58111.0,58110.0,0.51538013]
[1617732242588,3.63263847,58111.0,58110.0,0.51538013]
[1617732243689,3.63263847,58111.0,58110.0,0.96011886]
[1617732247492,3.76532847,58111.0,58110.0,0.96011886]
[1617732248505,3.63263847,58111.0,58110.0,0.96011886]
[1617732248895,3.63263847,58111.0,58110.0,2.09284886]
[1617732249598,3.63263847,58111.0,58110.0,1.09284886]
[1617732249797,3.63263847,58111.0,58110.0,2.09284886]
[1617732250897,3.63263847,58111.0,58110.0,1.09284886]
[1617732251097,3.63263847,58111.0,58110.0,0.96011886]
[1617732251497,3.63263847,58111.0,58110.0,0.45473873]
[1617732252599,3.76020847,58111.0,58110.0,0.45473873]
[1617732256302,0.23482655,58111.0,58110.0,0.45473873]
[1617732256502,0.10725655,58111.0,58110.0,0.45473873]
[1617732262614,0.10725655,58111.0,58110.0,0.60431873]
[1617732263712,0.10623846,58111.0,58110.0,0.60431873]
[1617732264212,0.10623846,58111.0,58110.0,0.45473873]
[1617732264913,0.10623846,58111.0,58110.0,0.59188873]
[1617732266331,0.10623846,58111.0,58110.0,4.17814528]
[1617732267119,0.10623846,58111.0,58110.0,4.2697725]
[1617732267817,0.10623846,58111.0,58110.0,2.2940083]
[1617732268318,0.10623846,58111.0,58110.0,0.69914528]
[1617732268519,0.10623846,58111.0,58110.0,1.79077045]
[1617732268917,0.10623846,58111.0,58110.0,1.69914528]
[1617732270121,0.10623846,58111.0,58110.0,2.20356221]
[1617732271021,0.10623846,58111.0,58110.0,2.76847326]
[1617732274026,0.10522057,58111.0,58110.0,2.76847326]
[1617732274425,3.1299,58121.0,58110.0,2.76847326]
[1617732274927,3.1299,58121.0,58120.0,1.0]
[1617732275327,3.1299,58121.0,58120.0,1.94932461]
[1617732275527,0.1281,58144.0,58120.0,1.94932461]
[1617732275729,3.5365,58140.0,58120.0,4.67822461]
[1617732275928,3.5365,58140.0,58124.0,1.0]
[1617732276327,3.5365,58140.0,58130.0,0.44436408]
[1617732277429,3.5365,58140.0,58129.0,0.44436784]
[1617732277633,3.5884,58140.0,58129.0,0.44436784]
[1617732278431,0.10725655,58130.0,58124.0,1.50495911]
[1617732278630,0.15855655,58130.0,58124.0,1.50495911]
[1617732278830,0.1281,58129.0,58124.0,1.50495911]
[1617732279032,0.1281,58129.0,58125.0,1.0]
[1617732279230,0.1281,58129.0,58125.0,1.1367]
[1617732279431,0.1281,58129.0,58128.0,0.44436328]
[1617732279832,3.6546,58129.0,58128.0,0.44436328]
[1617732280434,3.6546,58129.0,58128.0,1.44436328]
[1617732281034,3.6036,58129.0,58128.0,1.95184324]
[1617732281934,3.6036,58129.0,58128.0,0.95184324]
[1617732282134,3.6548,58129.0,58128.0,0.95184324]
[1617732282333,3.6036,58129.0,58128.0,0.95184324]
[1617732283635,3.4755,58129.0,58128.0,0.95184324]
[1617732284237,3.4755,58129.0,58128.0,0.93934324]
[1617732284445,3.4755,58129.0,58128.0,0.81174324]
[1617732284649,3.61473,58129.0,58128.0,0.78914324]
[1617732286036,3.61473,58129.0,58128.0,0.50747996]
[1617732287338,3.61473,58129.0,58128.0,0.48147996]
[1617732288741,0.13923,58129.0,58128.0,0.48147996]
[1617732289243,0.13923,58129.0,58128.0,0.43907996]
[1617732289641,0.13923,58129.0,58105.0,1.4871]
[1617732289642,0.13923,58129.0,58115.0,0.56864329]
[1617732289871,0.13182,58129.0,58115.0,0.56864329]
[1617732290056,0.13182,58129.0,58112.0,0.56865287]
[1617732290455,0.13182,58129.0,58114.0,0.56866122]
[1617732290647,0.10725655,58115.0,58114.0,0.56866122]
[1617732292550,0.24665655,58115.0,58114.0,0.56866122]
[1617732292743,0.24665655,58115.0,58113.0,0.56865242]
[1617732293146,0.24665655,58115.0,58112.0,0.54770613]
[1617732293545,0.24665655,58115.0,58104.0,0.71063266]
[1617732293778,0.24665655,58115.0,58102.0,0.71063146]
[1617732294046,5.64105655,58115.0,58102.0,0.71063146]
[1617732294246,0.24665655,58115.0,58102.0,0.71063146]
[1617732294749,0.10725655,58103.0,58102.0,0.71063146]
[1617732294948,0.26784655,58103.0,58102.0,0.71063146]
[1617732295348,0.26784655,58103.0,58101.0,0.71066149]
[1617732296255,0.26682841,58103.0,58101.0,0.71066149]
[1617732297092,0.26682841,58103.0,58099.0,0.71067607]
[1617732297853,0.26682841,58103.0,58098.0,0.71022011]
[1617732299154,0.26682841,58103.0,58097.0,0.7102663]
[1617732299554,0.26682841,58103.0,58095.0,0.71028186]
[1617732299954,0.26682841,58103.0,58080.0,1.0]
[1617732299955,0.26682841,58103.0,58092.0,0.71029626]
[1617732300189,1.0,58096.0,58092.0,0.71029626]
[1617732300366,1.2,58096.0,58092.0,0.71029626]
[1617732300556,2.5,58095.0,58089.0,0.65004524]
[1617732300755,0.10725655,58090.0,58089.0,0.50554524]
[1617732301058,3.51266,58077.0,58075.0,0.0916708]
[1617732301455,3.51266,58077.0,58075.0,0.14260724]
[1617732301655,1.0,58076.0,58075.0,0.11750724]
[1617732301855,0.90832311,58075.0,58063.0,0.89325609]
[1617732302055,3.2244,58076.0,58063.0,0.89325609]
[1617732302356,0.10216,58077.0,58061.0,0.89326028]
[1617732302556,2.60216,58077.0,58061.0,0.89326028]
[1617732302757,0.10725655,58062.0,58061.0,0.89326028]
[1617732302956,0.23160655,58062.0,58061.0,0.89326028]
[1617732303157,3.41350655,58062.0,58060.0,0.89332275]
[1617732303458,0.23160655,58062.0,58060.0,0.89332275]
[1617732303659,0.23160655,58062.0,58061.0,0.56848007]
[1617732304672,0.23160655,58062.0,58061.0,1.07606589]
[1617732305883,0.10725655,58062.0,58061.0,1.07606589]
[1617732306087,0.10725655,58062.0,58061.0,1.52279016]
[1617732306964,0.10725655,58062.0,58061.0,1.63004671]
[1617732307667,0.10623776,58062.0,58061.0,2.52344244]
[1617732308871,3.35323776,58062.0,58061.0,2.52344244]
[1617732310082,3.35323776,58062.0,58061.0,3.52344244]
[1617732310670,3.35323776,58062.0,58061.0,2.63004671]
[1617732310871,0.10623776,58062.0,58061.0,1.63004671]
[1617732311070,0.10623776,58062.0,58061.0,1.90004671]
[1617732311269,0.10623776,58062.0,58061.0,2.90004671]
[1617732311472,0.10623776,58062.0,58061.0,3.60668849]
[1617732311670,3.6449,58098.0,58061.0,3.60668849]
[1617732311970,3.6449,58098.0,58061.0,2.60668849]
[1617732312172,3.6449,58098.0,58074.0,1.15199]
[1617732312774,0.10725655,58087.0,58086.0,0.54300294]
[1617732313173,0.10725655,58087.0,58086.0,0.09883]
[1617732313574,0.10725655,58087.0,58086.0,0.54299308]
[1617732314574,0.10725655,58087.0,58086.0,1.04770758]
[1617732314874,0.10725655,58087.0,58086.0,1.15496413]
[1617732315282,0.10725655,58087.0,58086.0,4.64536413]
[1617732315490,0.10725655,58087.0,58086.0,5.64536413]
[1617732315940,0.10725655,58087.0,58086.0,6.35318802]
[1617732316095,1.1281,58115.0,58086.0,6.71486877]
[1617732316495,1.1281,58115.0,58099.0,1.0]
[1617732316496,0.1281,58115.0,58099.0,1.0]
[1617732316693,0.1281,58115.0,58103.0,1.0]
[1617732316887,0.1281,58115.0,58105.0,0.10725655]
[1617732317203,0.1281,58115.0,58105.0,0.55131195]
[1617732317776,0.1281,58115.0,58106.0,0.44404038]
[1617732318778,0.10725655,58107.0,58106.0,0.44404038]
[1617732319194,0.10725655,58107.0,58105.0,0.10725655]
[1617732319683,0.10725655,58107.0,58106.0,0.44401721]
[1617732321680,0.10725655,58107.0,58105.0,1.55066153]
[1617732322079,0.10725655,58107.0,58105.0,0.55066153]
[1617732322379,0.10725655,58107.0,58106.0,1.27]
[1617732322579,0.1281,58133.0,58106.0,1.27]
[1617732322580,0.1281,58133.0,58106.0,5.26210975]
[1617732322779,0.1281,58133.0,58126.0,0.10725655]
[1617732323079,0.051,58148.0,58126.0,3.88974655]
[1617732323080,0.1281,58146.0,58126.0,3.88974655]
[1617732323279,1.6281,58146.0,58126.0,1.13239]
[1617732323480,2.5616,58127.0,58126.0,0.13239]
[1617732323682,2.6897,58127.0,58126.0,0.13239]
[1617732324182,2.6897,58127.0,58119.0,0.44396309]
[1617732324381,2.6897,58127.0,58117.0,0.4439609]
[1617732324782,2.6897,58127.0,58115.0,0.44396384]
[1617732324983,0.10725655,58118.0,58115.0,0.44396384]
[1617732325281,0.10725655,58118.0,58112.0,0.44397444]
[1617732325781,0.10725655,58118.0,58113.0,0.44397644]
[1617732325982,0.10725655,58118.0,58113.0,0.71397644]
[1617732326182,0.10725655,58118.0,58113.0,0.44397644]
[1617732326684,0.10725655,58118.0,58108.0,0.50451523]
[1617732326882,0.10725655,58109.0,58108.0,0.50451523]
[1617732327383,0.10725655,58109.0,58108.0,0.77451523]
[1617732328491,0.10725655,58109.0,58108.0,0.27]
[1617732328684,0.10725655,58109.0,58107.0,0.01]
[1617732329086,0.10725655,58109.0,58108.0,0.27]
[1617732329305,0.10725655,58109.0,58108.0,0.37365]
[1617732329521,0.10725655,58109.0,58108.0,0.10365]
[1617732329686,0.10725655,58109.0,58108.0,0.87813004]
[1617732330087,0.10623824,58109.0,58108.0,0.87813004]
[1617732332195,3.50643824,58109.0,58108.0,0.87813004]
[1617732335594,3.50643824,58109.0,58108.0,0.50448004]
[1617732336000,3.50643824,58109.0,58097.0,0.50516131]
[1617732336596,3.50643824,58109.0,58086.0,0.56584494]
[1617732336896,3.4002,58109.0,58089.0,1.0]
[1617732337295,3.0223,58111.0,58092.0,1.0]
[1617732337596,0.0517,58110.0,58093.0,1.0]
[1617732337796,0.0517,58110.0,58093.0,1.26]
[1617732337997,0.0517,58110.0,58093.0,1.0]
[1617732338298,3.0223,58111.0,58094.0,0.26]
[1617732338899,0.10725655,58095.0,58094.0,0.26]
[1617732341206,0.10725655,58095.0,58086.0,1.0]
[1617732341500,0.10725655,58095.0,58085.0,0.09167959]
[1617732342006,0.10725655,58095.0,58086.0,0.27]
[1617732342200,3.23,58094.0,58083.0,0.0916812]
[1617732342403,3.39164,58094.0,58083.0,0.0916812]
[1617732342753,4.89164,58094.0,58079.0,0.56588054]
[1617732342950,0.10725655,58080.0,58078.0,0.56589199]
[1617732343127,0.23413655,58080.0,58078.0,0.56589199]
[1617732343324,0.23413655,58080.0,58078.0,0.53079199]
[1617732343607,0.23413655,58080.0,58067.0,0.23431278]
[1617732343608,0.2331178,58080.0,58067.0,0.23431278]
[1617732344205,0.2331178,58080.0,58072.0,1.0]
[1617732344404,0.2331178,58080.0,58071.0,1.0]
[1617732344608,0.2331178,58080.0,58073.0,0.27]
[1617732344806,0.2331178,58080.0,58072.0,0.01]
[1617732345006,0.10725655,58073.0,58072.0,1.01]
[1617732345206,0.10725655,58073.0,58071.0,0.10725655]
[1617732345409,0.10725655,58073.0,58072.0,0.27]
[1617732345606,0.10725655,58073.0,58072.0,1.27]
[1617732347709,0.15935655,58073.0,58072.0,1.27]
[1617732347909,0.10725655,58073.0,58072.0,1.27]
[1617732350510,0.10725655,58073.0,58072.0,0.27]
[1617732351211,0.10725655,58073.0,58072.0,1.77570949]
[1617732353434,0.10725655,58073.0,58072.0,2.34210294]
[1617732356017,0.10623778,58073.0,58072.0,2.34210294]
[1617732361422,0.10623778,58073.0,58072.0,1.34210294]
[1617732362623,0.10623778,58073.0,58072.0,0.77570949]
[1617732363224,0.10623778,58073.0,58072.0,1.3422419]
[1617732366025,0.20439778,58073.0,58072.0,1.3422419]
[1617732366625,0.20337895,58073.0,58072.0,0.77570949]
[1617732367226,0.20337895,58073.0,58072.0,0.74150949]
[1617732367827,0.20337895,58073.0,58072.0,0.72070949]
[1617732369127,0.20337895,58073.0,58072.0,0.69490949]
[1617732369828,0.20337895,58073.0,58072.0,0.50570949]
[1617732373530,0.10521895,58073.0,58072.0,0.50570949]
[1617732375031,0.10521895,58073.0,58072.0,1.50570949]
[1617732375666,0.10521895,58073.0,58072.0,2.43359806]
[1617732377437,0.10420017,58073.0,58072.0,2.43359806]
[1617732378136,0.10420017,58073.0,58072.0,1.43359806]
[1617732378336,2.85400017,58073.0,58072.0,1.43359806]
[1617732378736,2.85400017,58073.0,58072.0,1.33200368]
[1617732378936,2.85400017,58073.0,58072.0,1.32630368]
[1617732379137,2.85400017,58073.0,58072.0,0.76010949]
[1617732382440,0.10420017,58073.0,58072.0,1.32655178]
[1617732382641,3.61930017,58073.0,58072.0,1.32655178]
[1617732382841,3.61930017,58073.0,58072.0,0.76010949]
[1617732385144,3.61930017,58073.0,58072.0,1.32654454]
[1617732387856,3.61930017,58073.0,58072.0,0.76010949]
[1617732388253,3.61828133,58073.0,58072.0,0.76010949]
[1617732392257,3.67028133,58073.0,58072.0,0.76010949]
[1617732392458,3.61828133,58073.0,58072.0,0.76010949]
[1617732393361,3.61828133,58073.0,58072.0,1.32687221]
[1617732398371,3.61726248,58073.0,58072.0,1.32687221]